[Event "XII Paracin Festival 2019"]
[Site "Paracin"]
[Date "2019.07.10"]
[Round "7.15"]
[White "Pikula, Dejan"]
[Black "Chen, Peng"]
[Result "1/2-1/2"]
[ECO "B90"]
[WhiteElo "2447"]
[BlackElo "2328"]
[Annotator "NA"]
[PlyCount "100"]
[EventDate "2019.07.05"]
[EventType "swiss"]
[EventCountry "SRB"]
[SourceTitle "playchess.com"]
[Source "ChessBase"]
[SourceQuality "1"]
[TimeControl "5400+30"]

1. e4 {[%emt 0:00:00]} c5 {[%emt 0:00:55]} 2. Nf3 {[%emt 0:00:00]} d6 {[%emt 0:00:04]} 3. d4 {[%emt 0:00:00]} Nf6 {[%emt 0:00:03]} 4. Nc3 {[%emt 0:00:01]} cxd4 {[%emt 0:00:17]} 5. Nxd4 {[%emt 0:00:06]} a6 {[%emt 0:00:03]} 6. Nb3 {[%emt 0:00:21]} e6 {[%emt 0:05:49]} 7. g4 {[%emt 0:00:52]} h6 {[%emt 0:05:40]} 8. Bg2 {[%emt 0:02:51]} Be7 {[%emt 0:01:43]} 9. h3 {[%emt 0:06:54]} Nc6 {[%emt 0:03:11]} 10. f4 {[%emt 0:03:49]} Qc7 {[%emt 0:00:47]} 11. Be3 {[%emt 0:02:10]} b5 {[%emt 0:03:57]} 12. a3 {[%emt 0:01:00]} Bb7 {[%emt 0:01:19]} 13. O-O Nd7 {[%emt 0:00:46]} 14. a4 {[%emt 0:03:51]} b4 15. Ne2 {[%emt 0:00:16]} O-O {[%emt 0:04:19]} 16. f5 {[%emt 0:08:54]} exf5 {[%emt 0:05:06]} 17. gxf5 {[%emt 0:05:04]} Nce5 {[%emt 0:04:18]} 18. Nd2 {[%emt 0:07:25]} Nf6 {[%emt 0:05:11]} 19. Nf4 {[%emt 0:04:23]} Rfe8 {[%emt 0:09:52]} 20. Rc1 {[%emt 0:11:32]} Bc6 {[%emt 0:13:11]} 21. c4 {[%emt 0:08:14]} bxc3 {[%emt 0:00:40]} 22. Rxc3 {[%emt 0:00:05]} Qb7 {[%emt 0:00:27]} 23. Qc2 {[%emt 0:00:09]} Bd8 {[%emt 0:01:21]} 24. Rc1 {[%emt 0:07:54]} Bb6 {[%emt 0:01:38]} 25. Bxb6 {[%emt 0:00:12]} Qxb6+ {[%emt 0:00:02]} 26. Kh1 {[%emt 0:00:01]} Rad8 {[%emt 0:06:44]} 27. Nd5 {[%emt 0:02:53]} Bxd5 {[%emt 0:01:24]} 28. exd5 {[%emt 0:00:05]} Qd4 {[%emt 0:05:34]} 29. Nc4 {[%emt 0:07:04]} Nxc4 {[%emt 0:00:34]} 30. Rxc4 {[%emt 0:00:02]} Qe3 {[%emt 0:00:14]} 31. b4 Nh5 {[%emt 0:03:04]} 32. Qc3 {[%emt 0:02:30]} Qg5 {[%emt 0:07:11]} 33. Qf3 {[%emt 0:01:58]} Ng3+ {[%emt 0:02:17]} 34. Kh2 {[%emt 0:00:05]} Nxf5 {[%emt 0:00:02]} 35. Qf4 {[%emt 0:00:30]} Re2 {[%emt 0:03:18]} 36. Qxg5 {[%emt 0:01:55]} hxg5 {[%emt 0:00:01]} 37. Rc8 {[%emt 0:00:30]} Rxc8 {[%emt 0:00:13]} 38. Rxc8+ {[%emt 0:00:05]} Kh7 {[%emt 0:00:01]} 39. Kg1 {[%emt 0:00:05]} Nh4 {[%emt 0:00:20]} 40. Bh1 {[%emt 0:02:18]} Rb2 {[%emt 0:03:20]} 41. Rb8 {[%emt 0:01:50]} a5 {[%emt 0:02:20]} 42. Rb6 axb4 {[%emt 0:01:09]} 43. Rxd6 {[%emt 0:00:13]} f5 {[%emt 0:00:31]} 44. Rb6 {[%emt 0:00:17]} b3 {[%emt 0:00:56]} 45. d6 {[%emt 0:00:07]} Rd2 {[%emt 0:00:19]} 46. Rxb3 {[%emt 0:00:34]} Rxd6 {[%emt 0:00:06]} 47. Ra3 {[%emt 0:00:17]} Rd1+ {[%emt 0:00:43]} 48. Kh2 {[%emt 0:00:03]} Rd2+ {[%emt 0:00:09]} 49. Kg1 {[%emt 0:00:03]} Rd1+ {[%emt 0:00:30]} 50. Kh2 {[%emt 0:00:01]} Rd2+ {[%emt 0:00:25]} 1/2-1/2

[Event "XII Paracin Festival 2019"]
[Site "Paracin"]
[Date "2019.07.10"]
[Round "7.16"]
[White "Avalyan, Artur"]
[Black "Cabarkapa, Novak"]
[Result "1-0"]
[ECO "E70"]
[WhiteElo "2351"]
[BlackElo "2444"]
[Annotator "NA"]
[PlyCount "57"]
[EventDate "2019.07.05"]
[EventType "swiss"]
[EventCountry "SRB"]
[SourceTitle "playchess.com"]
[Source "ChessBase"]
[SourceQuality "1"]
[TimeControl "5400+30"]

1. d4 {[%emt 0:00:00]} Nf6 {[%emt 0:00:00]} 2. c4 {[%emt 0:00:00]} g6 {[%emt 0:00:00]} 3. Nc3 {[%emt 0:00:00]} Bg7 {[%emt 0:00:00]} 4. e4 {[%emt 0:00:00]} O-O {[%emt 0:00:00]} 5. Be2 {[%emt 0:00:00]} c6 6. e5 {[%emt 0:04:29]} Ne8 {[%emt 0:00:26]} 7. Nf3 {[%emt 0:00:44]} d6 {[%emt 0:05:35]} 8. Bf4 {[%emt 0:05:00]} f6 {[%emt 0:03:58]} 9. exd6 {[%emt 0:01:07]} exd6 {[%emt 0:00:42]} 10. Qb3 {[%emt 0:08:12]} g5 {[%emt 0:01:39]} 11. Be3 {[%emt 0:02:41]} Kh8 {[%emt 0:12:27]} 12. O-O-O {[%emt 0:05:34]} a6 {[%emt 0:09:57]} 13. g4 {[%emt 0:03:37]} b5 {[%emt 0:02:38]} 14. h4 {[%emt 0:01:35]} Bxg4 {[%emt 0:00:26]} 15. Rdg1 {[%emt 0:03:33]} Bxf3 {[%emt 0:04:38]} 16. Bxf3 {[%emt 0:01:44]} g4 {[%emt 0:00:23]} 17. Rxg4 {[%emt 0:14:40]} f5 {[%emt 0:02:51]} 18. Rg2 {[%emt 0:00:49]} f4 {[%emt 0:05:18]} 19. Bd2 {[%emt 0:00:04]} Bxd4 {[%emt 0:02:38]} 20. Rhg1 {[%emt 0:05:36]} Bg7 {[%emt 0:14:43]} 21. cxb5 {[%emt 0:07:17]} axb5 {[%emt 0:02:26]} 22. Ne2 {[%emt 0:06:08]} d5 {[%emt 0:03:39]} 23. Nxf4 {[%emt 0:03:32]} Qd6 {[%emt 0:01:24]} 24. Bh5 {[%emt 0:08:44]} Ra7 {[%emt 0:05:16]} 25. Bxe8 {[%emt 0:02:09]} Rxe8 {[%emt 0:00:39]} 26. Kb1 {[%emt 0:00:35]} Qe5 {[%emt 0:03:13]} 27. Nd3 {[%emt 0:01:53]} Qf6 {[%emt 0:01:15]} 28. h5 {[%emt 0:01:56]} Rd7 {[%emt 0:05:46]} 29. h6 {[%emt 0:00:26]} 1-0

[Event "XII Paracin Festival 2019"]
[Site "Paracin"]
[Date "2019.07.10"]
[Round "7.17"]
[White "Froewis, Georg"]
[Black "Milosevic, Milos"]
[Result "0-1"]
[ECO "A00"]
[WhiteElo "2434"]
[BlackElo "2312"]
[Annotator "NA"]
[PlyCount "74"]
[EventDate "2019.07.05"]
[EventType "swiss"]
[EventCountry "SRB"]
[SourceTitle "playchess.com"]
[Source "ChessBase"]
[SourceQuality "1"]
[TimeControl "5400+30"]

1. g3 {[%emt 0:00:00]} Nf6 {[%emt 0:01:04]} 2. Bg2 {[%emt 0:00:00]} e5 {[%emt 0:00:20]} 3. d3 {[%emt 0:00:00]} d5 {[%emt 0:00:22]} 4. a3 {[%emt 0:00:00]} Bd6 {[%emt 0:02:18]} 5. c4 {[%emt 0:00:54]} dxc4 {[%emt 0:03:36]} 6. Qa4+ {[%emt 0:00:32]} Bd7 {[%emt 0:02:10]} 7. Qxc4 {[%emt 0:00:02]} Nc6 {[%emt 0:00:09]} 8. Nf3 {[%emt 0:00:30]} O-O {[%emt 0:00:23]} 9. O-O {[%emt 0:00:21]} h6 {[%emt 0:02:08]} 10. b4 {[%emt 0:00:26]} a6 {[%emt 0:05:29]} 11. Bb2 {[%emt 0:00:09]} Qe7 {[%emt 0:01:48]} 12. Nbd2 {[%emt 0:00:09]} Rfe8 {[%emt 0:01:21]} 13. Rac1 {[%emt 0:00:30]} a5 {[%emt 0:12:26]} 14. b5 {[%emt 0:00:59]} Na7 {[%emt 0:00:04]} 15. a4 {[%emt 0:00:07]} c6 {[%emt 0:00:07]} 16. bxc6 {[%emt 0:04:49]} Bxc6 {[%emt 0:07:19]} 17. Qa2 {[%emt 0:00:26]} Bd5 {[%emt 0:04:37]} 18. Qa1 {[%emt 0:00:24]} b5 {[%emt 0:00:29]} 19. axb5 {[%emt 0:02:18]} Nxb5 {[%emt 0:01:36]} 20. e4 {[%emt 0:03:19]} Bb7 {[%emt 0:01:42]} 21. Nc4 {[%emt 0:00:15]} Nd7 {[%emt 0:00:10]} 22. Qa4 {[%emt 0:06:34]} Ba6 {[%emt 0:02:09]} 23. Nxa5 {[%emt 0:01:13]} Nc7 {[%emt 0:18:35]} 24. Nc6 {[%emt 0:08:25]} Qe6 {[%emt 0:00:43]} 25. Qc2 {[%emt 0:00:07]} Rac8 {[%emt 0:02:26]} 26. Rfd1 {[%emt 0:04:58]} Nb5 {[%emt 0:02:32]} 27. Qd2 {[%emt 0:04:42]} Nc5 {[%emt 0:01:05]} 28. Rxc5 {[%emt 0:04:58]} Bxc5 {[%emt 0:00:08]} 29. Ncxe5 {[%emt 0:00:03]} Qb3 {[%emt 0:01:02]} 30. Bh3 {[%emt 0:08:54]} Bb4 {[%emt 0:05:51]} 31. Qf4 {[%emt 0:04:53]} Qxd1+ {[%emt 0:00:06]} 32. Kg2 {[%emt 0:00:01]} Qb3 {[%emt 0:01:26]} 33. Nh4 {[%emt 0:01:47]} Nd6 {[%emt 0:01:45]} 34. Bxc8 {[%emt 0:03:22]} Bxc8 {[%emt 0:00:50]} 35. Bd4 {[%emt 0:00:06]} Nb5 {[%emt 0:01:56]} 36. Nhf3 {[%emt 0:00:06]} Bd6 {[%emt 0:01:07]} 37. Ba1 {[%emt 0:01:27]} f6 {[%emt 0:00:37]} 0-1

[Event "XII Paracin Festival 2019"]
[Site "Paracin"]
[Date "2019.07.10"]
[Round "7.18"]
[White "Lazov, Toni"]
[Black "Lajthajm, Borko"]
[Result "1-0"]
[ECO "C24"]
[WhiteElo "2313"]
[BlackElo "2424"]
[Annotator "NA"]
[PlyCount "107"]
[EventDate "2019.07.05"]
[EventType "swiss"]
[EventCountry "SRB"]
[SourceTitle "playchess.com"]
[Source "ChessBase"]
[SourceQuality "1"]
[TimeControl "5400+30"]

1. e4 {[%emt 0:00:11]} e5 {[%emt 0:00:00]} 2. Bc4 {[%emt 0:00:30]} Nf6 {[%emt 0:00:27]} 3. d3 {[%emt 0:00:05]} c6 {[%emt 0:00:52]} 4. Nf3 {[%emt 0:00:08]} d5 {[%emt 0:00:04]} 5. Bb3 {[%emt 0:00:04]} Bd6 {[%emt 0:01:06]} 6. exd5 {[%emt 0:01:31]} Nxd5 {[%emt 0:00:37]} 7. O-O {[%emt 0:03:45]} O-O {[%emt 0:00:38]} 8. Re1 {[%emt 0:02:12]} Nd7 {[%emt 0:01:57]} 9. Nbd2 {[%emt 0:03:51]} Bc7 {[%emt 0:00:45]} 10. Ne4 {[%emt 0:03:34]} h6 {[%emt 0:00:11]} 11. Ng3 {[%emt 0:11:09]} Re8 {[%emt 0:04:08]} 12. d4 {[%emt 0:03:05]} exd4 {[%emt 0:01:08]} 13. Rxe8+ {[%emt 0:00:14]} Qxe8 {[%emt 0:00:06]} 14. Bxd5 {[%emt 0:05:55]} cxd5 {[%emt 0:00:06]} 15. Qxd4 {[%emt 0:00:26]} Bb6 {[%emt 0:01:10]} 16. Qf4 {[%emt 0:07:37]} Nf6 {[%emt 0:03:58]} 17. Be3 {[%emt 0:03:32]} Bxe3 {[%emt 0:01:17]} 18. Qxe3 {[%emt 0:00:05]} Qxe3 {[%emt 0:00:04]} 19. fxe3 {[%emt 0:00:05]} Bd7 {[%emt 0:00:25]} 20. h3 {[%emt 0:03:00]} Re8 {[%emt 0:00:33]} 21. Kf2 {[%emt 0:01:24]} g6 {[%emt 0:00:28]} 22. Rd1 {[%emt 0:16:47]} h5 {[%emt 0:01:54]} 23. Rd4 {[%emt 0:01:07]} b6 {[%emt 0:00:38]} 24. Ke2 {[%emt 0:07:26]} Bb5+ {[%emt 0:00:50]} 25. Kd2 {[%emt 0:01:22]} a5 {[%emt 0:01:03]} 26. b3 {[%emt 0:03:46]} Kg7 {[%emt 0:01:01]} 27. Rf4 {[%emt 0:02:17]} Ba6 {[%emt 0:01:59]} 28. a4 {[%emt 0:00:47]} Re7 {[%emt 0:02:49]} 29. Nd4 {[%emt 0:03:44]} Re5 {[%emt 0:00:54]} 30. Nf3 {[%emt 0:00:22]} Re8 {[%emt 0:03:14]} 31. Ng5 {[%emt 0:00:13]} Bc8 {[%emt 0:02:22]} 32. Ne2 {[%emt 0:02:12]} Re5 {[%emt 0:00:35]} 33. h4 {[%emt 0:01:39]} Re7 {[%emt 0:00:29]} 34. Nc3 {[%emt 0:02:25]} Bb7 {[%emt 0:02:41]} 35. Nb5 {[%emt 0:03:33]} Ne8 {[%emt 0:03:45]} 36. b4 {[%emt 0:03:41]} Bc6 {[%emt 0:02:24]} 37. bxa5 {[%emt 0:00:19]} bxa5 {[%emt 0:00:10]} 38. Nf3 {[%emt 0:00:35]} Bxb5 {[%emt 0:00:36]} 39. axb5 {[%emt 0:00:01]} Nd6 {[%emt 0:01:29]} 40. Ra4 {[%emt 0:02:07]} Nc4+ {[%emt 0:00:16]} 41. Kc3 {[%emt 0:00:02]} Rxe3+ {[%emt 0:01:16]} 42. Kd4 {[%emt 0:00:28]} Re2 {[%emt 0:01:04]} 43. Ra2 {[%emt 0:00:42]} Rxg2 {[%emt 0:01:10]} 44. Kxd5 {[%emt 0:00:05]} Rg4 {[%emt 0:01:03]} 45. Nd4 {[%emt 0:01:55]} Nb6+ {[%emt 0:00:53]} 46. Kc6 {[%emt 0:00:01]} Nc8 {[%emt 0:00:07]} 47. c3 {[%emt 0:01:37]} Rxh4 {[%emt 0:00:35]} 48. Rxa5 {[%emt 0:01:08]} Rf4 {[%emt 0:00:17]} 49. Kc7 {[%emt 0:00:25]} Rf1 {[%emt 0:06:01]} 50. Kxc8 {[%emt 0:00:13]} Rb1 {[%emt 0:00:05]} 51. c4 {[%emt 0:01:18]} Rb4 {[%emt 0:00:41]} 52. c5 {[%emt 0:00:01]} Rxd4 {[%emt 0:00:08]} 53. b6 {[%emt 0:00:06]} h4 {[%emt 0:00:07]} 54. b7 {[%emt 0:00:10]} 1-0

[Event "XII Paracin Festival 2019"]
[Site "Paracin"]
[Date "2019.07.10"]
[Round "7.19"]
[White "Janzelj, Tim"]
[Black "Gan-Od, Sereenen"]
[Result "1-0"]
[ECO "B09"]
[WhiteElo "2416"]
[BlackElo "2294"]
[Annotator "NA"]
[PlyCount "145"]
[EventDate "2019.07.05"]
[EventType "swiss"]
[EventCountry "SRB"]
[SourceTitle "playchess.com"]
[Source "ChessBase"]
[SourceQuality "1"]
[TimeControl "5400+30"]

1. d4 {[%emt 0:00:00]} g6 {[%emt 0:00:00]} 2. e4 {[%emt 0:00:07]} Bg7 {[%emt 0:00:00]} 3. Nc3 {[%emt 0:00:36]} d6 {[%emt 0:00:00]} 4. f4 {[%emt 0:00:10]} Nf6 {[%emt 0:00:00]} 5. Nf3 {[%emt 0:00:05]} O-O {[%emt 0:00:00]} 6. Bd3 {[%emt 0:00:56]} Bg4 {[%emt 0:00:43]} 7. h3 {[%emt 0:07:35]} Bxf3 {[%emt 0:00:30]} 8. Qxf3 {[%emt 0:00:02]} Nfd7 {[%emt 0:00:32]} 9. e5 {[%emt 0:06:37]} Nc6 {[%emt 0:01:52]} 10. Ne2 {[%emt 0:05:00]} Nb4 {[%emt 0:07:42]} 11. Be4 {[%emt 0:07:50]} d5 {[%emt 0:03:46]} 12. Bd3 {[%emt 0:00:01]} c5 {[%emt 0:00:36]} 13. c3 {[%emt 0:00:12]} Nxd3+ {[%emt 0:00:19]} 14. Qxd3 {[%emt 0:00:02]} cxd4 {[%emt 0:01:31]} 15. cxd4 {[%emt 0:00:29]} Qb6 {[%emt 0:03:23]} 16. O-O {[%emt 0:00:36]} e6 {[%emt 0:00:51]} 17. Bd2 {[%emt 0:10:05]} Rac8 18. Bc3 {[%emt 0:00:44]} Nb8 {[%emt 0:00:57]} 19. Kh1 Nc6 {[%emt 0:01:58]} 20. g4 {[%emt 0:00:35]} f5 {[%emt 0:01:48]} 21. Rg1 {[%emt 0:09:31]} Kh8 {[%emt 0:01:21]} 22. Rg2 {[%emt 0:02:44]} Rf7 {[%emt 0:00:59]} 23. Rh2 {[%emt 0:01:35]} Qa6 {[%emt 0:00:48]} 24. Qf3 {[%emt 0:09:04]} b5 {[%emt 0:01:18]} 25. Qd3 {[%emt 0:03:23]} Qb6 {[%emt 0:00:53]} 26. h4 {[%emt 0:01:07]} b4 {[%emt 0:00:36]} 27. Bd2 {[%emt 0:01:49]} fxg4 {[%emt 0:03:19]} 28. h5 {[%emt 0:00:01]} g5 {[%emt 0:02:59]} 29. h6 {[%emt 0:06:04]} Bf8 {[%emt 0:00:51]} 30. Rg1 {[%emt 0:00:02]} b3 {[%emt 0:04:37]} 31. a3 {[%emt 0:01:16]} Ne7 {[%emt 0:02:01]} 32. Rxg4 {[%emt 0:00:35]} Nf5 {[%emt 0:01:49]} 33. fxg5 {[%emt 0:00:47]} Qc6 {[%emt 0:08:47]} 34. Bc3 {[%emt 0:09:38]} Qc4 {[%emt 0:01:07]} 35. Qh3 {[%emt 0:03:47]} Be7 {[%emt 0:06:47]} 36. Rhg2 {[%emt 0:03:24]} Rg8 {[%emt 0:00:44]} 37. Kh2 {[%emt 0:02:48]} Rg6 {[%emt 0:05:21]} 38. Nf4 {[%emt 0:01:12]} Rf8 {[%emt 0:00:45]} 39. Nxg6+ {[%emt 0:00:16]} hxg6 {[%emt 0:00:01]} 40. Rf2 {[%emt 0:00:50]} Kh7 {[%emt 0:00:34]} 41. Rd2 {[%emt 0:05:11]} Rc8 {[%emt 0:00:33]} 42. Rd3 {[%emt 0:01:16]} Qa6 {[%emt 0:00:35]} 43. Qf3 {[%emt 0:01:03]} Rf8 {[%emt 0:00:57]} 44. Qe2 {[%emt 0:00:09]} Rb8 {[%emt 0:00:39]} 45. Rd2 {[%emt 0:00:22]} Qc6 {[%emt 0:00:06]} 46. Qd3 {[%emt 0:00:55]} Qc8 {[%emt 0:01:16]} 47. Rg1 {[%emt 0:00:27]} Rb6 {[%emt 0:01:02]} 48. Ba5 {[%emt 0:01:17]} Ra6 {[%emt 0:01:28]} 49. Bb4 {[%emt 0:00:42]} Bd8 {[%emt 0:02:11]} 50. Qxb3 {[%emt 0:00:11]} Rb6 {[%emt 0:01:11]} 51. Qd3 {[%emt 0:00:32]} Rc6 {[%emt 0:01:14]} 52. Rgg2 {[%emt 0:01:05]} Bb6 {[%emt 0:00:42]} 53. Bc3 {[%emt 0:00:16]} Rc4 {[%emt 0:01:16]} 54. Rdf2 {[%emt 0:00:41]} Qc7 {[%emt 0:00:28]} 55. Rxf5 {[%emt 0:00:36]} exf5 {[%emt 0:00:06]} 56. Qe3 {[%emt 0:00:41]} Rc6 {[%emt 0:00:16]} 57. Kh1 {[%emt 0:00:20]} Qe7 {[%emt 0:00:14]} 58. Qf3 {[%emt 0:00:49]} Qd8 {[%emt 0:00:18]} 59. Rg1 {[%emt 0:00:21]} a5 {[%emt 0:00:11]} 60. Qg2 {[%emt 0:00:17]} a4 {[%emt 0:00:35]} 61. Re1 {[%emt 0:00:10]} Re6 {[%emt 0:00:11]} 62. Qd2 {[%emt 0:00:35]} Qd7 {[%emt 0:01:00]} 63. Qd3 {[%emt 0:00:20]} Bd8 {[%emt 0:00:15]} 64. Bd2 {[%emt 0:00:11]} Be7 {[%emt 0:00:28]} 65. Rc1 {[%emt 0:01:40]} Rb6 {[%emt 0:01:28]} 66. Qc2 {[%emt 0:00:44]} Qb5 {[%emt 0:00:22]} 67. Bb4 {[%emt 0:00:25]} Rb7 {[%emt 0:01:24]} 68. Bxe7 {[%emt 0:00:17]} Rxe7 {[%emt 0:00:01]} 69. Qc5 {[%emt 0:00:12]} Qb7 {[%emt 0:01:44]} 70. Qb4 {[%emt 0:00:26]} Qd7 {[%emt 0:00:21]} 71. Rc6 {[%emt 0:00:19]} f4 {[%emt 0:03:42]} 72. e6 {[%emt 0:00:02]} Qd8 {[%emt 0:04:41]} 73. Rc4 1-0

[Event "XII Paracin Festival 2019"]
[Site "Paracin"]
[Date "2019.07.10"]
[Round "7.20"]
[White "Maksimovic, Bojan"]
[Black "Harvey, Marcus R"]
[Result "1-0"]
[ECO "C11"]
[WhiteElo "2326"]
[BlackElo "2402"]
[Annotator "NA"]
[PlyCount "59"]
[EventDate "2019.07.05"]
[EventType "swiss"]
[EventCountry "SRB"]
[SourceTitle "playchess.com"]
[Source "ChessBase"]
[SourceQuality "1"]
[TimeControl "5400+30"]

1. e4 {[%emt 0:00:00]} e6 {[%emt 0:04:14]} 2. d4 {[%emt 0:00:00]} d5 {[%emt 0:00:22]} 3. Nc3 {[%emt 0:00:00]} Nf6 {[%emt 0:00:03]} 4. Bg5 {[%emt 0:00:15]} dxe4 {[%emt 0:01:05]} 5. Nxe4 {[%emt 0:00:09]} Be7 {[%emt 0:00:03]} 6. Bxf6 {[%emt 0:00:10]} gxf6 {[%emt 0:00:04]} 7. Nf3 {[%emt 0:00:49]} f5 {[%emt 0:00:04]} 8. Nc3 {[%emt 0:00:54]} a6 {[%emt 0:00:03]} 9. g3 {[%emt 0:01:25]} b5 {[%emt 0:00:03]} 10. Bg2 {[%emt 0:00:45]} Bb7 {[%emt 0:00:03]} 11. O-O {[%emt 0:00:35]} c5 {[%emt 0:00:07]} 12. d5 {[%emt 0:01:03]} b4 {[%emt 0:00:04]} 13. dxe6 {[%emt 0:00:22]} bxc3 {[%emt 0:00:05]} 14. exf7+ {[%emt 0:00:07]} Kf8 {[%emt 0:00:02]} 15. Qe2 {[%emt 0:00:35]} Qd6 {[%emt 0:24:24]} 16. Rad1 {[%emt 0:09:15]} Qf6 {[%emt 0:00:04]} 17. bxc3 {[%emt 0:01:13]} Ra7 {[%emt 0:14:43]} 18. Rfe1 {[%emt 0:08:14]} Be4 {[%emt 0:15:06]} 19. Nh4 {[%emt 0:03:24]} Qxf7 {[%emt 0:05:27]} 20. Bxe4 {[%emt 0:07:33]} fxe4 {[%emt 0:02:34]} 21. Qxe4 {[%emt 0:01:16]} Bxh4 {[%emt 0:03:26]} 22. Qxh4 {[%emt 0:03:06]} Kg7 {[%emt 0:04:27]} 23. Re4 {[%emt 0:09:58]} h5 {[%emt 0:10:23]} 24. Rd6 {[%emt 0:06:40]} Rh6 {[%emt 0:00:35]} 25. Rg4+ {[%emt 0:04:08]} Kh7 {[%emt 0:01:54]} 26. Rxh6+ {[%emt 0:00:31]} Kxh6 {[%emt 0:00:05]} 27. Qg5+ {[%emt 0:00:40]} Kh7 {[%emt 0:00:05]} 28. Rh4 {[%emt 0:00:09]} Qg6 {[%emt 0:08:50]} 29. Rxh5+ {[%emt 0:00:16]} Kg7 {[%emt 0:00:07]} 30. Qe5+ {[%emt 0:00:11]} 1-0

[Event "XII Paracin Festival 2019"]
[Site "Paracin"]
[Date "2019.07.10"]
[Round "7.21"]
[White "Savic, Miodrag R"]
[Black "Nandhidhaa, P V"]
[Result "1/2-1/2"]
[ECO "B40"]
[WhiteElo "2503"]
[BlackElo "2259"]
[Annotator "ChessBase"]
[PlyCount "69"]
[EventDate "2019.07.05"]
[EventType "swiss"]
[EventCountry "SRB"]
[SourceTitle "playchess.com"]
[Source "ChessBase"]
[SourceQuality "1"]
[TimeControl "5400+30"]

1. e4 {[%emt 0:00:00]} c5 {[%emt 0:00:00]} 2. Nf3 {[%emt 0:00:00]} e6 {[%emt 0:00:00]} 3. c3 {[%emt 0:00:00]} Nf6 {[%emt 0:00:00]} 4. Bd3 {[%emt 0:02:10]} Nc6 {[%emt 0:00:20]} 5. Bc2 {[%emt 0:00:07]} d5 {[%emt 0:00:33]} 6. e5 {[%emt 0:01:00]} Nd7 {[%emt 0:00:09]} 7. d4 {[%emt 0:00:02]} Be7 {[%emt 0:00:21]} 8. O-O {[%emt 0:01:54]} b6 {[%emt 0:00:31]} 9. Re1 {[%emt 0:03:18]} Ba6 {[%emt 0:00:08]} 10. a3 {[%emt 0:02:43]} Rc8 {[%emt 0:02:03]} 11. Be3 {[%emt 0:10:53]} Qc7 {[%emt 0:02:02]} 12. Bd3 {[%emt 0:01:25]} Bxd3 {[%emt 0:00:21]} 13. Qxd3 {[%emt 0:00:01]} O-O {[%emt 0:04:54]} 14. Nbd2 {[%emt 0:00:01]} cxd4 {[%emt 0:00:28]} 15. cxd4 {[%emt 0:00:02]} Na5 {[%emt 0:00:27]} 16. b4 {[%emt 0:05:16]} Nc4 {[%emt 0:03:15]} 17. Bg5 {[%emt 0:09:18]} Nxd2 {[%emt 0:12:10]} 18. Qxd2 {[%emt 0:09:28]} Bxg5 {[%emt 0:00:27]} 19. Qxg5 {[%emt 0:00:02]} h6 {[%emt 0:00:33]} 20. Qf4 {[%emt 0:12:40]} Nf6 {[%emt 0:05:31]} 21. Rac1 {[%emt 0:01:29]} Qb8 {[%emt 0:00:26]} 22. Nd2 {[%emt 0:08:32]} Rxc1 {[%emt 0:01:20]} 23. Rxc1 {[%emt 0:00:01]} Rc8 {[%emt 0:00:19]} 24. Nf1 {[%emt 0:02:07]} Ne8 {[%emt 0:07:02]} 25. g4 {[%emt 0:07:32]} Rxc1 {[%emt 0:00:26]} 26. Qxc1 {[%emt 0:00:01]} Qc7 {[%emt 0:00:07]} 27. Qd2 {[%emt 0:00:16]} Qc4 {[%emt 0:08:00]} 28. Ne3 {[%emt 0:00:32]} Qc6 {[%emt 0:00:29]} 29. h4 {[%emt 0:01:35]} Nc7 {[%emt 0:01:15]} 30. Qd3 {[%emt 0:01:51]} a6 {[%emt 0:07:21]} 31. Kg2 {[%emt 0:00:14]} Nb5 {[%emt 0:03:33]} 32. Kf3 {[%emt 0:04:00]} Qc1 {[%emt 0:02:55]} 33. a4 {[%emt 0:00:16]} Nc3 {[%emt 0:02:12]} 34. Kg2 {[%emt 0:00:44]} b5 {[%emt 0:02:27]} 35. axb5 1/2-1/2

[Event "XII Paracin Festival 2019"]
[Site "Paracin"]
[Date "2019.07.10"]
[Round "7.22"]
[White "Raahul V S"]
[Black "Milanovic, Danilo"]
[Result "1-0"]
[ECO "A20"]
[WhiteElo "2251"]
[BlackElo "2492"]
[Annotator "ChessBase"]
[PlyCount "45"]
[EventDate "2019.07.05"]
[EventType "swiss"]
[EventCountry "SRB"]
[SourceTitle "playchess.com"]
[Source "ChessBase"]
[SourceQuality "1"]
[TimeControl "5400+30"]

1. c4 {[%emt 0:00:00]} e5 {[%emt 0:06:29]} 2. g3 {[%emt 0:00:35]} Nc6 {[%emt 0:00:06]} 3. Bg2 {[%emt 0:00:06]} Bc5 {[%emt 0:00:06]} 4. Nc3 {[%emt 0:00:13]} a6 {[%emt 0:00:08]} 5. e3 {[%emt 0:00:32]} d6 {[%emt 0:00:08]} 6. Nge2 {[%emt 0:00:30]} Ba7 {[%emt 0:00:07]} 7. d4 {[%emt 0:02:16]} Nge7 {[%emt 0:02:40]} 8. O-O {[%emt 0:00:23]} O-O {[%emt 0:00:07]} 9. b3 {[%emt 0:00:10]} exd4 10. Nxd4 {[%emt 0:11:44]} Nxd4 {[%emt 0:17:56]} 11. exd4 {[%emt 0:01:14]} Nf5 {[%emt 0:00:28]} 12. Ne2 {[%emt 0:00:24]} Rb8 {[%emt 0:02:46]} 13. Bb2 {[%emt 0:01:04]} b5 {[%emt 0:01:28]} 14. Rc1 {[%emt 0:00:25]} bxc4 {[%emt 0:05:29]} 15. Rxc4 {[%emt 0:00:02]} a5 {[%emt 0:00:12]} 16. Qc2 {[%emt 0:12:17]} Ba6 {[%emt 0:39:06]} 17. Ra4 {[%emt 0:00:15]} Re8 {[%emt 0:00:17]} 18. Re1 {[%emt 0:08:36]} Bb5 {[%emt 0:01:33]} 19. Rxa5 {[%emt 0:00:08]} Nxd4 {[%emt 0:01:29]} 20. Qc3 {[%emt 0:01:31]} Qf6 {[%emt 0:03:26]} 21. Nxd4 {[%emt 0:00:21]} Bxd4 {[%emt 0:00:39]} 22. Rxe8+ {[%emt 0:00:09]} Rxe8 {[%emt 0:00:06]} 23. Qxd4 {[%emt 0:00:01]} 1-0